bitfinex-derivatives/quotes_ETHF0:USTF0_20240901
["timestamp","ask_amount","ask_price","bid_price","bid_amount"]
[1725198974247,3.61204,2473.9,2473.3,8.57713276]
[1725198974455,3.61204,2473.9,2473.2,8.98146276]
[1725198974758,3.2078,2473.9,2473.3,0.40433]
[1725198975060,3.2078,2473.8,2473.3,8.73457274]
[1725198975360,3.2078,2473.8,2473.2,13.8891313]
[1725198975361,3.2078,2473.7,2473.2,0.40435]
[1725198975745,3.2078,2473.7,2473.3,8.73457274]
[1725198976158,3.2078,2473.7,2473.3,0.40433]
[1725198976359,0.40422,2474.1,2473.4,0.40431]
[1725198976656,0.40422,2474.1,2473.5,0.4043]
[1725198976862,0.40422,2474.1,2473.5,8.52642619]
[1725198977060,3.2078,2474.2,2473.5,8.93071619]
[1725198977246,3.2078,2474.2,2473.7,0.40427]
[1725198977560,3.2078,2474.2,2473.6,5.56573088]
[1725198977764,3.61199,2474.2,2473.7,0.3556]
[1725198978067,3.612,2474.2,2473.7,0.3556]
[1725198978252,3.2078,2474.2,2473.7,0.3556]
[1725198978652,3.2078,2474.2,2473.7,0.75986]
[1725198978856,3.2078,2474.2,2473.8,5.59527015]
[1725198979061,3.2078,2474.2,2473.8,5.98657015]
[1725198979458,3.61199,2474.2,2473.8,5.58233015]
[1725198979662,3.2078,2474.2,2473.8,5.58233015]
[1725198979966,3.2078,2474.2,2473.9,0.40423]
[1725198980154,3.2078,2474.2,2473.9,0.40424]
[1725198980350,3.2078,2474.2,2473.9,4.0416]
[1725198980563,3.2078,2474.2,2473.9,0.40423]
[1725198980964,3.2078,2474.2,2473.8,0.3913]
[1725198980965,3.2078,2474.2,2473.8,0.79554]
[1725198981167,3.2078,2474.2,2473.7,0.3556]
[1725198981369,3.2078,2474.2,2473.9,5.690617]
[1725198981663,3.2078,2474.2,2473.8,5.72464863]
[1725198981866,3.2078,2474.2,2473.8,0.3913]
[1725198982172,3.2078,2474.2,2473.7,0.3556]
[1725198982559,3.2078,2474.2,2473.7,0.75987]
[1725198982856,3.2078,2474.2,2473.7,0.3556]
[1725198983172,3.61199,2474.2,2473.7,0.3556]
[1725198983352,0.40427,2473.7,2473.5,3.2078]
[1725198983552,3.2078,2474.2,2473.5,3.2078]
[1725198983757,0.40424,2473.9,2473.5,3.2078]
[1725198984161,3.2078,2474.2,2473.6,5.23584897]
[1725198984363,3.2078,2474.2,2473.6,13.77838369]
[1725198984662,3.2078,2473.9,2473.1,0.3853]
[1725198984859,3.61208,2473.6,2473.1,0.3853]
[1725198985164,3.2078,2473.6,2473.2,5.1788284]
[1725198985664,3.61209,2473.6,2473.2,5.1788284]
[1725198985861,3.2078,2473.6,2473.2,5.1788284]
[1725198986870,0.40436,2473.2,2472.9,0.00606943]
[1725198987166,3.61214,2473.3,2472.9,0.00606943]
[1725198987370,0.76841,2473.5,2472.9,0.00606943]
[1725198987572,0.40432,2473.4,2472.9,0.00606943]
[1725198987770,0.40434,2473.3,2472.9,0.00606943]
[1725198988069,3.61212,2473.4,2472.9,0.00606943]
[1725198988269,3.2078,2473.4,2472.9,0.00606943]
[1725198988570,3.61212,2473.4,2472.9,0.00606943]
[1725198989368,0.40433,2473.3,2472.9,0.00606943]
[1725198990066,3.2078,2473.4,2472.9,0.00606943]
[1725198990373,0.40438,2473.0,2472.9,0.00606943]
[1725198990668,3.2078,2473.5,2472.9,0.00606943]
[1725198990872,0.40433,2473.4,2472.9,0.00606943]
[1725198991062,0.40433,2473.3,2472.9,0.00606943]
[1725198991256,3.2078,2473.5,2472.9,0.00606943]
[1725198991468,0.40438,2473.0,2472.9,0.00606943]
[1725198991966,4.44838,2473.0,2472.9,0.00606943]
[1725198992474,0.40444,2472.7,2472.4,0.3902]
[1725198992663,0.3754,2473.1,2472.1,3.2078]
[1725198992664,0.40445,2472.6,2472.1,3.2078]
[1725198992970,0.40445,2472.6,2472.3,5.3124488]
[1725198993271,0.40445,2472.6,2472.1,3.2078]
[1725198993467,0.40447,2472.5,2472.2,0.00606943]
[1725198993668,0.00606943,2472.7,2472.2,8.30997337]
[1725198993964,0.00606943,2472.7,2472.2,0.00606943]
[1725198994368,0.00606943,2472.7,2472.3,13.57021402]
[1725198994665,0.00606943,2472.7,2472.4,3.5711]
[1725198994873,0.41050943,2472.7,2472.4,0.3633]
[1725198995172,0.40446,2472.6,2472.2,0.00606943]
[1725198995361,0.00606943,2472.7,2472.2,0.00606943]
[1725198995558,0.40445,2472.6,2472.2,0.00606943]
[1725198995764,0.00606943,2472.7,2472.2,0.00606943]
[1725198995765,0.40447,2472.5,2472.2,0.00606943]
[1725198997460,0.00606943,2472.7,2472.3,8.51185793]
[1725198997678,0.00606943,2472.7,2472.3,16.90318377]
[1725198997862,0.00606943,2472.7,2472.5,0.40446]
[1725198998175,0.00606943,2472.7,2472.6,9.15507584]
[1725198998468,0.00606943,2472.7,2472.6,3.5671]
[1725198998673,0.00606943,2472.7,2472.6,7.6111]
[1725198998878,0.00606943,2472.7,2472.6,13.16331244]
[1725198999063,3.61211,2473.5,2472.6,18.75886244]
[1725198999367,4.26333622,2473.8,2472.9,3.2078]
[1725198999559,3.61205,2473.8,2473.1,0.40436]
[1725198999764,3.61205,2473.8,2473.2,3.2078]
[1725198999966,0.40424,2473.9,2473.3,0.358]
[1725199000368,1.45976622,2474.0,2473.4,5.30763909]
[1725199000569,0.40424,2473.9,2473.5,0.00606943]
[1725199000773,1.05553622,2474.0,2473.5,0.00606943]
[1725199000774,0.40428,2473.7,2473.5,0.00606943]
[1725199001072,0.40436,2473.2,2472.5,3.61225]
[1725199001264,10.26628085,2473.6,2472.6,0.358]
[1725199001572,1.35203622,2473.5,2472.7,13.60435255]
[1725199001872,0.40436,2473.2,2472.7,13.60435255]
[1725199002063,0.40437,2473.1,2472.7,0.00606943]
[1725199002375,0.00606943,2473.2,2472.8,8.27955042]
[1725199002669,0.41042943,2473.2,2472.8,8.27955042]
[1725199002870,0.00606943,2473.2,2472.8,8.68396042]
[1725199003060,0.00606943,2473.2,2472.9,5.14831541]
[1725199006577,0.00606943,2473.2,2472.9,5.55271541]
[1725199006775,0.00606943,2473.2,2472.9,5.14831541]
[1725199009082,0.00606943,2473.2,2473.0,0.40437]
[1725199009468,0.00606943,2473.2,2472.9,5.14831541]
[1725199009673,0.41042943,2473.2,2472.9,5.14831541]
[1725199010479,0.00606943,2473.2,2472.7,0.37386943]
[1725199010879,1.06160565,2473.2,2472.8,8.27459296]
[1725199011082,0.40442,2472.8,2472.7,0.00606943]
[1725199011572,4.44842,2472.8,2472.7,0.00606943]
[1725199012084,0.40445,2472.6,2472.5,3.2078]
[1725199012476,5.50478622,2472.6,2472.5,3.2078]
[1725199013387,4.44925,2472.6,2472.5,3.2078]
[1725199013882,5.50478622,2472.6,2472.3,0.00606943]
[1725199014087,4.44928,2472.5,2472.3,0.00606943]
[1725199014281,0.40448,2472.4,2472.3,0.00606943]
[1725199014491,4.44928,2472.4,2472.3,0.00606943]
[1725199015188,1.05553622,2472.6,2472.3,0.00606943]
[1725199015386,1.45997622,2472.7,2472.3,0.00606943]
[1725199015580,0.40444,2472.7,2472.3,0.00606943]
[1725199015781,1.45997622,2472.7,2472.3,0.00606943]
[1725199016582,0.40445,2472.6,2472.3,0.00606943]
[1725199017688,1.45998622,2472.6,2472.3,0.00606943]
[1725199018383,1.05553622,2472.6,2472.3,0.00606943]
[1725199018586,1.45997622,2472.7,2472.3,0.00606943]
[1725199018785,1.05553622,2472.7,2472.4,13.45246746]
[1725199018983,2.10308102,2473.0,2472.5,0.40446]
[1725199018984,1.05553622,2472.9,2472.5,0.40446]
[1725199019185,1.05553622,2472.9,2472.5,0.78796]
[1725199019384,1.05553622,2473.0,2472.6,5.54995623]
[1725199019585,1.05553622,2473.0,2472.6,5.14551623]
[1725199020182,1.05553622,2473.0,2472.6,5.54995623]
[1725199020993,1.45992622,2473.0,2472.6,5.14551623]
[1725199021297,1.05553622,2473.0,2472.6,5.54996623]
[1725199021483,1.05553622,2473.0,2472.6,5.14551623]
[1725199021683,1.45992622,2473.0,2472.6,5.14551623]
[1725199022282,0.40446,2472.6,2472.3,0.00606943]
[1725199022485,1.05553622,2472.9,2472.3,0.41055943]
[1725199022486,0.40443,2472.8,2472.3,0.41055943]
[1725199022685,0.40443,2472.8,2472.4,8.51790173]
[1725199023389,1.05553622,2472.7,2472.3,0.00606943]
[1725199023585,0.40448,2472.4,2472.3,0.00606943]
[1725199023987,5.50481622,2472.4,2472.3,0.00606943]
[1725199024394,13.04148068,2472.4,2472.3,0.00606943]
[1725199024592,13.71298068,2472.4,2472.3,0.00606943]
[1725199024793,12.13199,2472.4,2472.3,0.00606943]
[1725199025187,14.23507102,2472.4,2472.3,0.00606943]
[1725199025691,0.40456,2472.0,2471.7,0.7356]
[1725199025891,1.05511244,2472.1,2471.7,4.34799]
[1725199026100,1.05511244,2472.1,2471.7,3.9434]
[1725199026398,0.40456,2472.0,2471.7,3.9434]
[1725199026903,1.05511244,2472.1,2471.7,3.9434]
[1725199027195,0.40458,2471.8,2471.6,0.00606943]
[1725199027396,4.4502,2471.7,2471.6,0.00606943]
[1725199028299,6.0326216,2471.7,2471.6,0.00606943]
[1725199028605,12.03269526,2471.7,2471.6,0.00606943]
[1725199029100,1.05508523,2471.8,2471.6,0.00606943]
[1725199029302,1.06115466,2471.9,2471.6,0.00606943]
[1725199030003,0.00606943,2471.9,2471.6,3.61846943]
[1725199030189,0.00606943,2471.9,2471.7,9.13947126]
[1725199030388,0.00606943,2471.9,2471.7,14.49372538]
[1725199030899,1.58249526,2472.2,2471.7,14.49372538]
[1725199030900,1.05508523,2472.2,2471.7,18.13473538]
[1725199031114,1.05508523,2472.3,2471.9,0.40455]
[1725199031991,1.06115466,2472.3,2472.0,0.40453]
[1725199032192,0.00606943,2472.3,2472.1,0.79512]
[1725199032901,1.05586996,2472.6,2472.2,17.6404305]
[1725199033098,1.05586996,2472.9,2472.6,0.40444]
[1725199033294,1.05586996,2472.9,2472.7,3.61223]
[1725199033600,1.05586996,2473.0,2472.7,11.82528441]
[1725199033901,1.05586996,2472.9,2472.7,3.2078]
[1725199034103,1.05586996,2472.9,2472.4,14.16695993]
[1725199034104,1.05586996,2472.9,2472.4,3.2078]
[1725199034405,1.46026996,2472.9,2472.5,8.42353592]
[1725199034601,1.05586996,2472.9,2472.5,8.42353592]
[1725199035200,0.40442,2472.8,2472.5,8.42353592]
[1725199035390,1.05586996,2472.8,2472.5,8.42353592]
[1725199035592,1.46026996,2472.9,2472.5,8.42353592]
[1725199035791,1.05586996,2472.9,2472.5,8.42353592]
[1725199036204,1.05586996,2472.9,2472.6,0.3696]
[1725199040904,1.05586996,2472.9,2472.7,0.3699]
[1725199041509,1.05586996,2473.0,2472.7,0.3699]
[1725199041701,1.05586996,2473.0,2472.7,3.5777]
[1725199041902,0.00606943,2473.1,2473.0,0.40438]
[1725199042102,1.05586996,2473.5,2473.1,0.40435]
[1725199042406,1.05586996,2473.6,2473.2,8.28419701]
[1725199042709,0.40432,2473.4,2473.1,8.28419701]
[1725199042910,0.40433,2473.4,2473.1,8.28419701]
[1725199043203,0.40433,2473.4,2473.0,3.21386943]
[1725199043514,1.46017996,2473.5,2473.0,3.21386943]
[1725199043895,0.40433,2473.3,2473.0,3.21386943]
[1725199044413,1.79516996,2473.5,2473.0,3.21386943]
[1725199044706,1.46022996,2473.2,2473.0,3.21386943]
[1725199044910,5.09906996,2473.2,2473.0,3.21386943]
[1725199045109,1.46020996,2473.3,2473.0,3.21386943]
[1725199045508,1.05586996,2473.3,2473.0,3.21386943]
[1725199045806,1.05586996,2473.4,2473.0,3.21386943]
[1725199046009,1.05586996,2473.3,2473.0,3.21386943]
[1725199046307,1.46020996,2473.3,2473.0,3.21386943]
[1725199046709,1.05586996,2473.3,2473.0,3.21386943]
[1725199047209,1.05586996,2473.4,2473.0,3.21386943]
[1725199047410,1.58249526,2473.5,2473.1,8.38462902]
[1725199047411,1.05586996,2473.5,2473.1,8.38462902]
[1725199047599,1.05586996,2473.7,2473.4,3.2078]
[1725199047800,1.46013996,2473.7,2473.5,0.361]
[1725199048099,1.05586996,2473.7,2473.5,0.361]
[1725199048406,4.0424,2473.7,2473.4,3.2078]
[1725199048607,1.05586996,2473.5,2473.0,0.00606943]
[1725199048911,1.46015996,2473.6,2473.1,13.44609734]
[1725199049301,1.05586996,2473.6,2473.1,13.44609734]
[1725199049505,1.46016996,2473.5,2473.0,0.00606943]
[1725199049700,0.4043,2473.5,2473.0,0.00606943]
[1725199049909,1.46016996,2473.5,2473.1,8.38247976]
[1725199050103,1.05586996,2473.6,2473.1,8.38247976]
[1725199050402,1.05586996,2473.8,2473.2,3.61213]
[1725199050601,1.05586996,2473.8,2473.3,0.40433]
[1725199050808,1.46011996,2473.8,2473.4,0.3533]
[1725199051006,1.05586996,2473.8,2473.4,0.3533]
[1725199051209,9.76195388,2473.7,2473.0,0.00606943]
[1725199051410,0.40432,2473.4,2473.0,0.00606943]
[1725199051715,0.40435,2473.2,2473.1,8.42163917]
[1725199051911,0.40437,2473.1,2473.0,0.00606943]
[1725199053813,0.40435,2473.2,2473.0,0.00606943]
[1725199054009,1.05586996,2473.3,2473.0,8.49530097]
[1725199054207,2.10308102,2473.6,2473.2,3.2078]
[1725199054208,1.05586996,2473.6,2473.2,3.2078]
[1725199054512,2.63836522,2473.7,2473.2,3.2078]
[1725199054812,1.46014996,2473.7,2473.2,3.2078]
[1725199055021,0.40429,2473.6,2473.2,3.2078]
[1725199055316,0.40428,2473.6,2473.2,3.2078]
[1725199055522,1.05586996,2473.7,2473.0,0.00606943]
[1725199055810,1.05586996,2473.7,2473.0,0.41044943]
[1725199056017,1.46014996,2473.7,2473.1,13.84151259]
[1725199056215,0.4043,2473.5,2473.2,3.2078]
[1725199056517,0.40435,2473.2,2473.0,0.00606943]
[1725199056813,0.40434,2473.3,2473.0,0.00606943]
[1725199057220,1.41616996,2473.5,2473.0,0.00606943]
[1725199057519,0.40433,2473.4,2473.0,0.00606943]
[1725199057721,0.40434,2473.3,2473.0,0.00606943]
[1725199058022,0.40433,2473.4,2473.0,0.00606943]
[1725199060116,0.4043,2473.6,2473.2,3.2078]
[1725199060620,0.40429,2473.6,2473.0,0.00606943]
[1725199060813,0.4043,2473.5,2473.0,0.00606943]
[1725199061009,0.4043,2473.5,2473.1,5.36546714]
[1725199061213,3.2078,2473.5,2473.0,0.00606943]
[1725199061521,5.39922005,2473.4,2473.0,0.00606943]
[1725199061717,0.40437,2473.1,2473.0,0.00606943]
[1725199062119,4.44757,2473.1,2473.0,0.00606943]
[1725199063817,4.0432,2473.1,2473.0,0.00606943]
[1725199065926,3.2078,2473.2,2473.0,0.00606943]
[1725199066119,7.251,2473.2,2473.0,0.00606943]
[1725199066314,7.65535,2473.2,2473.0,0.00606943]
[1725199066513,3.61215,2473.2,2473.0,0.00606943]
[1725199067322,3.2078,2473.2,2473.0,0.00606943]
[1725199067713,1.46016996,2473.5,2473.0,0.00606943]
[1725199067917,1.46016996,2473.5,2473.0,0.39086943]
[1725199068126,4.82221687,2473.5,2473.1,0.3795]
[1725199068429,0.4043,2473.5,2473.1,0.3795]
[1725199068730,1.46014996,2473.7,2473.2,11.84333594]
[1725199068930,1.46014996,2473.7,2473.2,12.24768594]
[1725199069314,0.40428,2473.7,2473.2,11.84333594]
[1725199070326,4.66791996,2473.8,2473.2,11.84333594]
[1725199070626,4.66791996,2473.8,2473.2,12.24767594]
[1725199071223,4.26366996,2473.8,2473.2,11.84333594]
[1725199071427,4.26366996,2473.8,2473.3,0.40433]
[1725199071625,4.26366996,2473.8,2473.4,0.40431]
[1725199071824,4.26366996,2473.8,2473.4,8.62662313]
[1725199072025,4.26366996,2473.8,2473.4,9.03092313]
[1725199072630,4.26366996,2473.8,2473.4,8.62662313]
[1725199073020,4.66791996,2473.8,2473.4,8.62662313]
[1725199073725,0.40427,2473.7,2473.4,8.62662313]
[1725199074127,5.05308,2473.7,2473.1,0.3795]
[1725199074327,0.40434,2473.3,2473.1,0.3795]
[1725199074521,0.40433,2473.4,2473.1,0.3795]
[1725199074826,0.40435,2473.2,2473.1,0.3795]
[1725199075028,0.40435,2473.2,2473.0,0.00606943]
[1725199075226,8.66760956,2473.6,2473.0,0.00606943]
[1725199075227,0.40437,2473.1,2473.0,0.00606943]
[1725199075626,4.44757,2473.1,2473.0,0.00606943]
[1725199077636,10.44757,2473.1,2473.0,0.00606943]
[1725199078027,10.76237,2473.1,2473.0,0.00606943]
[1725199079533,0.40442,2472.8,2472.7,1.06083255]
[1725199079933,4.44842,2472.8,2472.7,1.06083255]
[1725199080338,0.40443,2472.7,2472.6,3.2078]
[1725199080932,2.64972665,2472.9,2472.7,0.40443]
[1725199081128,2.64972665,2472.9,2472.8,0.3793]
[1725199081533,2.64972665,2472.9,2472.8,4.4233]
[1725199081740,2.64972665,2472.9,2472.8,13.1235734]
[1725199083240,2.64972665,2472.9,2472.8,0.3793]
[1725199084527,2.64972665,2472.9,2472.6,3.2078]
[1725199084835,0.40443,2472.7,2472.6,3.2078]
[1725199085021,0.40445,2472.6,2472.4,0.38576943]
[1725199085429,2.11564429,2472.6,2472.4,0.38576943]
[1725199085630,1.58672836,2472.5,2472.4,0.38576943]
[1725199086230,1.58672836,2472.5,2472.4,0.79024943]
[1725199086231,1.0578952,2472.5,2472.4,0.79024943]
[1725199086435,0.4699952,2472.6,2472.5,0.40446]
[1725199086638,0.00606943,2472.9,2472.8,0.40442]
[1725199086941,0.00606943,2472.9,2472.8,3.2078]
[1725199087331,0.00606943,2472.9,2472.8,3.61222]
[1725199087531,0.00606943,2472.9,2472.8,3.2078]
[1725199087731,0.00606943,2472.9,2472.8,7.2518]
[1725199088828,0.00606943,2472.9,2472.8,7.65622]
[1725199089529,0.00606943,2472.9,2472.8,3.61222]
[1725199089838,0.00606943,2472.9,2472.8,7.65622]
[1725199090425,0.00606943,2472.9,2472.8,18.81757657]
[1725199090833,2.11564429,2473.3,2473.1,0.40437]
[1725199090834,1.58672836,2473.2,2473.1,0.40437]
[1725199091039,1.58672836,2473.2,2473.1,3.61217]
[1725199091238,1.58672836,2473.4,2473.2,0.40434]
[1725199092840,1.58672836,2473.4,2473.3,0.40433]
[1725199093442,1.58672836,2473.4,2473.2,0.40434]
[1725199093937,1.58672836,2473.4,2473.3,0.3855]
[1725199094539,1.58672836,2473.4,2473.1,3.61216]
[1725199094835,1.58672836,2473.3,2472.9,0.3855]
[1725199095044,1.58672836,2473.3,2473.1,3.61216]
[1725199095441,1.58672836,2473.3,2473.1,3.2078]
[1725199095642,1.58672836,2473.3,2473.1,3.61216]
[1725199096044,1.58672836,2473.3,2473.2,0.40435]
[1725199096343,1.58672836,2473.4,2473.2,0.40435]
[1725199096642,1.58672836,2473.4,2473.1,3.61216]
[1725199096851,1.58672836,2473.3,2473.1,3.2078]
[1725199097145,1.58672836,2473.3,2473.1,3.61217]
[1725199097940,1.58672836,2473.3,2473.1,3.2078]
[1725199098541,1.58672836,2473.2,2473.1,3.2078]
[1725199099141,1.58672836,2473.3,2473.1,3.2078]
[1725199100943,1.58672836,2473.4,2473.3,0.40433]
[1725199101539,1.58672836,2473.4,2473.3,4.44753]
[1725199102446,1.58672836,2473.5,2473.4,0.40432]
[1725199102844,1.58672836,2473.5,2473.4,4.0432]
[1725199103059,1.58672836,2473.5,2473.3,0.40433]
[1725199103555,1.58672836,2473.4,2473.3,0.40433]
[1725199103748,1.58672836,2473.4,2473.2,0.76714]
[1725199103950,1.58672836,2473.4,2473.2,0.3628]
[1725199104148,1.58672836,2473.4,2473.1,3.2078]
[1725199104149,1.58672836,2473.3,2473.1,3.2078]
[1725199105147,1.58672836,2473.2,2472.9,1.1678]
[1725199105553,1.99108836,2473.2,2472.8,3.2078]
[1725199105753,1.99108836,2473.2,2472.6,1.59124883]
[1725199105754,1.58672836,2473.0,2472.6,0.3575]
[1725199106055,2.52000429,2473.2,2472.6,0.3575]
[1725199106056,1.58672836,2472.9,2472.6,0.3575]
[1725199107147,0.40444,2472.7,2472.5,3.2078]
[1725199107347,1.94212836,2472.6,2472.5,3.2078]
[1725199107650,0.75985,2472.6,2472.5,3.2078]
[1725199108258,1.94248445,2472.6,2472.5,3.2078]
[1725199110643,2.34693445,2472.6,2472.5,3.2078]
[1725199110848,6.39173445,2472.6,2472.5,3.2078]
[1725199111058,0.40446,2472.5,2472.4,0.00606943]
[1725199111261,2.35734984,2472.5,2472.4,0.00606943]
[1725199111467,4.81556,2472.5,2472.4,0.00606943]
[1725199112055,6.93120429,2472.5,2472.4,0.00606943]
[1725199112256,4.81556,2472.5,2472.4,0.00606943]
[1725199112451,6.93120429,2472.5,2472.4,0.00606943]
[1725199112747,0.40452,2472.2,2472.0,3.2078]
[1725199112951,1.58581881,2472.3,2472.0,3.2078]
[1725199113152,2.48194429,2472.5,2472.0,3.2078]
[1725199113153,0.40453,2472.1,2472.0,3.2078]
[1725199113455,1.58581881,2472.1,2471.5,0.3773]
[1725199113657,0.41061943,2472.0,2471.6,0.00606943]
[1725199114162,0.40457,2471.9,2471.6,0.00606943]
[1725199114460,0.74176943,2472.0,2471.6,0.00606943]
[1725199114663,0.74176943,2472.0,2471.7,3.2078]
[1725199114857,0.00606943,2472.0,2471.7,3.2078]
[1725199115061,0.00606943,2472.0,2471.7,8.85029258]
[1725199115252,0.00606943,2472.0,2471.7,8.44570258]
[1725199115764,0.00606943,2472.0,2471.7,3.2078]
[1725199118265,0.00606943,2472.0,2471.8,0.40457]
[1725199118460,0.00606943,2472.0,2471.8,0.75947]
[1725199118660,0.00606943,2472.0,2471.9,0.40456]
[1725199119657,0.00606943,2472.0,2471.9,18.84341158]
[1725199120172,1.58581881,2472.7,2472.3,0.40449]
[1725199120466,3.5878,2472.8,2472.4,0.379]
[1725199120467,3.2078,2472.8,2472.4,0.379]
[1725199120664,3.2078,2472.8,2472.5,0.75935]
[1725199121267,3.2078,2472.8,2472.7,0.40443]
[1725199121461,1.58581881,2473.1,2472.7,0.40443]
[1725199121865,2.33691881,2473.2,2472.7,0.40442]
[1725199122969,2.33691881,2473.2,2472.8,3.2078]
[1725199122970,1.58581881,2473.2,2472.8,3.2078]
[1725199123164,1.58581881,2473.3,2472.8,8.48219937]
[1725199123361,4.79361881,2473.4,2472.8,3.6122]
[1725199123563,4.79361881,2473.4,2472.9,0.00606943]
[1725199125575,5.19793881,2473.4,2472.9,0.00606943]
[1725199125969,4.79361881,2473.4,2472.9,0.00606943]
[1725199126175,4.79361881,2473.4,2472.9,0.41046943]
[1725199126371,4.79361881,2473.4,2472.9,0.00606943]
[1725199126566,4.79361881,2473.4,2473.0,0.3619]
[1725199126768,5.19793881,2473.4,2473.0,0.3619]
[1725199126972,1.99013881,2473.4,2473.0,0.3619]
[1725199128077,1.58581881,2473.4,2473.0,0.3619]
[1725199128772,1.99013881,2473.4,2473.0,0.3619]
[1725199129579,1.58581881,2473.4,2473.0,0.3619]
[1725199130576,1.99013881,2473.4,2473.0,0.3619]
[1725199131967,1.58581881,2473.4,2473.0,0.3619]
[1725199132376,1.58581881,2473.4,2473.3,0.40433]
[1725199132575,3.10289881,2473.7,2473.1,8.8175398]
[1725199132872,3.10289881,2473.7,2473.2,0.40435]
[1725199133092,3.10288881,2473.7,2473.2,0.40435]
[1725199133273,3.10288881,2473.7,2473.1,8.8175398]
[1725199133274,0.40429,2473.6,2473.1,9.2218998]
[1725199133677,0.40429,2473.6,2473.1,8.8175398]
[1725199133872,0.40429,2473.6,2473.1,9.2218998]
[1725199135176,3.10289881,2473.7,2473.2,0.40435]
[1725199135377,0.40429,2473.6,2473.1,9.2218998]
[1725199135580,2.69861881,2473.7,2473.1,9.2218998]
[1725199135581,3.10289881,2473.7,2473.1,9.2218998]
[1725199135769,0.40429,2473.6,2473.1,9.2218998]
[1725199136876,2.69861881,2473.7,2473.0,0.3619]
[1725199137072,0.40434,2473.3,2473.0,0.3619]
[1725199137679,6.0058568,2473.6,2473.0,0.3619]
[1725199137881,0.40435,2473.3,2473.0,0.3619]
[1725199138873,0.40436,2473.2,2473.0,0.3619]
[1725199139071,1.58581881,2473.5,2472.9,0.00606943]
[1725199139481,0.40435,2473.2,2472.9,0.00606943]
[1725199139681,2.11564429,2473.6,2472.9,0.00606943]
[1725199139682,6.85445079,2473.4,2472.9,0.00606943]
[1725199139880,0.79627,2473.1,2472.9,0.00606943]
[1725199140075,1.58581881,2473.4,2472.9,3.21386943]
[1725199140285,0.40434,2473.3,2472.9,3.21386943]
[1725199140879,0.40435,2473.2,2472.9,3.21386943]
[1725199141088,0.75746,2473.2,2472.9,3.21386943]
[1725199141383,0.40438,2473.1,2472.9,3.21386943]
[1725199142074,0.40438,2473.0,2472.9,3.21386943]
[1725199142271,0.78588,2473.0,2472.9,0.00606943]
[1725199142479,4.82988,2473.0,2472.9,0.00606943]
[1725199143776,1.58581881,2473.1,2472.9,0.00606943]
[1725199143977,0.40437,2473.1,2472.9,0.00606943]
[1725199144181,0.40438,2473.0,2472.9,0.00606943]
[1725199144682,4.44838,2473.0,2472.9,0.00606943]
[1725199146282,1.93891881,2473.2,2472.9,0.41045943]
[1725199146580,1.93891881,2473.2,2472.9,0.00606943]
[1725199146581,0.3531,2473.2,2472.9,0.00606943]
[1725199146984,0.3531,2473.2,2472.9,0.41046943]
[1725199147289,1.58581881,2473.3,2472.9,0.78836943]
[1725199147591,1.58581881,2473.3,2473.0,0.3913]
[1725199149490,2.38203881,2473.4,2473.1,3.2078]
[1725199149679,1.58581881,2473.4,2473.0,0.3913]
[1725199149879,1.58581881,2473.4,2473.0,0.79568]
[1725199150086,1.99013881,2473.4,2473.0,0.3913]
[1725199150687,0.40433,2473.3,2473.0,0.3913]
[1725199150885,1.58581881,2473.4,2472.9,0.00606943]
[1725199151082,1.58581881,2473.3,2472.9,0.00606943]
[1725199151288,0.40438,2473.0,2472.9,0.00606943]
[1725199151491,4.44838,2473.0,2472.9,0.00606943]
[1725199151888,4.80908,2473.0,2472.9,0.00606943]
[1725199152682,6.39489881,2473.0,2472.9,0.00606943]
[1725199153299,4.80908,2473.0,2472.9,0.00606943]
[1725199153787,6.39489881,2473.0,2472.9,0.00606943]
[1725199155789,6.39265175,2473.0,2472.9,0.00606943]
[1725199155992,2.34863995,2473.0,2472.9,0.00606943]
[1725199156187,1.98793995,2473.0,2472.9,0.00606943]
[1725199156498,1.58355995,2473.2,2472.9,4.45446943]
[1725199156689,1.58355995,2473.2,2473.0,0.7438]
[1725199156889,1.58355995,2473.3,2473.0,0.7438]
[1725199157792,0.40436,2473.2,2472.9,0.00606943]
[1725199158000,1.58355995,2473.2,2472.9,0.00606943]
[1725199158290,1.98791995,2473.2,2472.9,0.00606943]
[1725199158896,0.40438,2473.0,2472.9,0.00606943]
[1725199159187,0.40438,2473.1,2472.9,0.00606943]
[1725199159383,0.40438,2473.0,2472.9,0.00606943]
[1725199159582,0.40438,2473.1,2472.9,0.00606943]
[1725199159782,0.40438,2473.0,2472.9,0.00606943]
[1725199161396,1.98792995,2473.1,2472.9,0.00606943]
[1725199161786,1.58355995,2473.1,2472.9,0.00606943]
[1725199162395,1.98793995,2473.1,2472.9,0.00606943]
[1725199162587,1.58355995,2473.0,2472.9,0.00606943]
[1725199164196,2.11564429,2473.1,2472.9,4.05006943]
[1725199164393,2.11564429,2473.1,2472.9,0.00606943]
[1725199164690,2.11564429,2473.1,2472.9,0.41046943]
[1725199164892,2.11564429,2473.1,2472.9,0.00606943]
[1725199165194,2.64365722,2473.2,2472.9,0.00606943]
[1725199165195,2.52002429,2473.0,2472.9,0.00606943]
[1725199165796,2.89272429,2473.0,2472.9,0.00606943]
[1725199166097,0.77708,2473.0,2472.9,0.00606943]
[1725199166298,3.42073722,2473.0,2472.9,0.00606943]
[1725199169089,2.64365722,2473.0,2472.9,0.00606943]
[1725199169298,3.04802722,2473.1,2472.9,0.00606943]
[1725199169699,2.64365722,2473.0,2472.9,0.00606943]
[1725199169906,3.04802722,2473.1,2472.9,0.00606943]
[1725199170103,2.64365722,2473.0,2472.9,0.00606943]
[1725199170394,2.64365722,2473.1,2472.9,0.00606943]
[1725199170901,2.64365722,2473.0,2472.9,0.00606943]
[1725199171194,2.64365722,2473.1,2472.9,0.00606943]
[1725199172296,2.11874595,2473.0,2472.9,0.00606943]
[1725199172801,2.11874595,2473.0,2472.9,0.41045943]
[1725199173192,2.11874595,2473.0,2472.9,4.45445943]
[1725199173997,2.64365722,2473.2,2473.0,0.40438]
[1725199173998,2.11874595,2473.1,2473.0,0.40438]
[1725199174203,2.11874595,2473.2,2473.0,0.40438]
[1725199174403,2.11874595,2473.2,2473.1,3.61217]
[1725199174591,1.589077,2473.2,2473.1,3.2078]
[1725199174792,2.11874595,2473.3,2473.1,3.2078]
[1725199174992,2.11874595,2473.3,2473.2,0.3683]
[1725199177801,2.11874595,2473.3,2473.2,8.02365]
[1725199178306,2.11874595,2473.4,2473.2,8.02365]
[1725199178495,2.11874595,2473.4,2473.2,3.98045]